[Event "Titled Tuesday Blitz August 08 Late 2023"]
[White "Jaracz, Pawel"]
[Black "Castro Silva, Moises Antonio"]
[WhiteFideId "1102222"]
[BlackFideId "3909794"]
[WhiteElo "2767"]
[BlackElo "2439"]
[Result "1/2-1/2"]
[Round "1"]
[TimeControl "180+1"]
[Date "2023.08.08"]
[WhiteClock "0:00:16"]
[BlackClock "0:00:04"]
[Board "62"]

1. e4 {[%clk 0:02:59]}  c5 {[%clk 0:03:00]} 2. Nf3 {[%clk 0:02:59]}  e6 {[%clk 0:02:59]} 3. d4 {[%clk 0:02:59]}  cxd4 {[%clk 0:02:59]} 4. Nxd4 {[%clk 0:02:59]}  Nf6 {[%clk 0:03:00]} 5. Nc3 {[%clk 0:02:57]}  Nc6 {[%clk 0:03:01]} 6. Bf4 {[%clk 0:02:53]}  Bb4 {[%clk 0:02:58]} 7. Nb5 {[%clk 0:02:53]}  O-O {[%clk 0:02:51]} 8. Bc7 {[%clk 0:02:50]}  Qe7 {[%clk 0:02:50]} 9. Bd6 {[%clk 0:02:50]}  Bxd6 {[%clk 0:02:49]} 10. Qxd6 {[%clk 0:02:50]}  Qxd6 {[%clk 0:02:08]} 11. Nxd6 {[%clk 0:02:49]}  Ne8 {[%clk 0:02:06]} 12. Ncb5 {[%clk 0:02:29]}  Nxd6 {[%clk 0:01:56]} 13. Nxd6 {[%clk 0:02:29]}  Rd8 {[%clk 0:01:42]} 14. O-O-O {[%clk 0:02:27]}  Kf8 {[%clk 0:01:42]} 15. f4 {[%clk 0:02:26]}  f6 {[%clk 0:01:42]} 16. Bb5 {[%clk 0:02:24]}  Ke7 {[%clk 0:01:42]} 17. Bxc6 {[%clk 0:02:23]}  dxc6 {[%clk 0:01:27]} 18. e5 {[%clk 0:02:23]}  b6 {[%clk 0:01:25]} 19. Rd3 {[%clk 0:02:20]}  Bd7 {[%clk 0:01:15]} 20. Rg3 {[%clk 0:02:07]}  Kf8 {[%clk 0:01:11]} 21. Rd1 {[%clk 0:02:02]}  Be8 {[%clk 0:01:08]} 22. h4 {[%clk 0:01:54]}  Bg6 {[%clk 0:00:58]} 23. Re3 {[%clk 0:01:53]}  Bh5 {[%clk 0:00:54]} 24. Rd2 {[%clk 0:01:52]}  Bg4 {[%clk 0:00:50]} 25. Rg3 {[%clk 0:01:33]}  h5 {[%clk 0:00:50]} 26. Rgd3 {[%clk 0:01:33]}  Ke7 {[%clk 0:00:48]} 27. c4 {[%clk 0:01:28]}  c5 {[%clk 0:00:48]} 28. b3 {[%clk 0:01:25]}  Rab8 {[%clk 0:00:37]} 29. Kb2 {[%clk 0:01:24]}  Ra8 {[%clk 0:00:37]} 30. Kc3 {[%clk 0:01:23]}  Rab8 {[%clk 0:00:38]} 31. Nb5 {[%clk 0:01:15]}  Rxd3+ {[%clk 0:00:37]} 32. Rxd3 {[%clk 0:01:16]}  Ra8 {[%clk 0:00:21]} 33. Rd6 {[%clk 0:01:05]}  a6 {[%clk 0:00:19]} 34. Nc7 {[%clk 0:01:04]}  Ra7 {[%clk 0:00:19]} 35. Nd5+ {[%clk 0:00:51]}  exd5 {[%clk 0:00:19]} 36. cxd5 {[%clk 0:00:52]}  fxe5 {[%clk 0:00:15]} 37. fxe5 {[%clk 0:00:52]}  Rd7 {[%clk 0:00:15]} 38. Rxb6 {[%clk 0:00:40]}  Rxd5 {[%clk 0:00:16]} 39. Rb7+ {[%clk 0:00:38]}  Kf8 {[%clk 0:00:14]} 40. Ra7 {[%clk 0:00:29]}  Rxe5 {[%clk 0:00:14]} 41. Rxa6 {[%clk 0:00:29]}  Re2 {[%clk 0:00:14]} 42. g3 {[%clk 0:00:27]}  Rg2 {[%clk 0:00:13]} 43. Ra5 {[%clk 0:00:19]}  Rxg3+ {[%clk 0:00:13]} 44. Kc4 {[%clk 0:00:19]}  g5 {[%clk 0:00:12]} 45. hxg5 {[%clk 0:00:18]}  h4 {[%clk 0:00:12]} 46. Ra8+ {[%clk 0:00:18]}  Kg7 {[%clk 0:00:12]} 47. Ra6 {[%clk 0:00:18]}  h3 {[%clk 0:00:10]} 48. Rh6 {[%clk 0:00:18]}  Rg2 {[%clk 0:00:06]} 49. a4 {[%clk 0:00:16]}  h2 {[%clk 0:00:05]} 50. Kxc5 {[%clk 0:00:17]}  Bf3 {[%clk 0:00:04]} 51. b4 {[%clk 0:00:17]}  Rc2+ {[%clk 0:00:05]} 52. Kb6 {[%clk 0:00:17]}  h1=Q {[%clk 0:00:05]} 53. Rxh1 {[%clk 0:00:16]}  Bxh1 {[%clk 0:00:06]} 54. b5 {[%clk 0:00:17]}  Kf7 {[%clk 0:00:05]} 55. a5 {[%clk 0:00:17]}  Ke7 {[%clk 0:00:05]} 56. g6 {[%clk 0:00:17]}  Rg2 {[%clk 0:00:04]} 57. a6 {[%clk 0:00:15]}  Rxg6+ {[%clk 0:00:05]} 58. Kc7 {[%clk 0:00:16]}  Rg1 {[%clk 0:00:04]} 59. b6 {[%clk 0:00:16]}  Rc1+ {[%clk 0:00:05]} 60. Kb8 {[%clk 0:00:17]}  Kd7 {[%clk 0:00:04]} 61. b7 {[%clk 0:00:16]}  Rg1 {[%clk 0:00:02]} 62. Ka7 {[%clk 0:00:15]}  Rb1 {[%clk 0:00:01]} 63. b8=Q {[%clk 0:00:15]}  Rxb8 {[%clk 0:00:02]} 64. Kxb8 {[%clk 0:00:16]}  Bc6 {[%clk 0:00:02]} 65. a7 {[%clk 0:00:16]}  Bd5 {[%clk 0:00:03]} 66. a8=Q {[%clk 0:00:16]}  Bxa8 {[%clk 0:00:04]} 1/2-1/2


[Site "https://www.chess.com"]

[Event "Titled Tuesday Blitz August 08 Late 2023"]
[White "Lamaze, Simon"]
[Black "Ingunza Curro, Andres"]
[WhiteFideId "36069264"]
[BlackFideId "24526371"]
[WhiteElo "2759"]
[BlackElo "2433"]
[Result "1-0"]
[Round "1"]
[TimeControl "180+1"]
[Date "2023.08.08"]
[WhiteClock "0:01:09"]
[BlackClock "0:00:07"]
[Board "66"]

1. c4 {[%clk 0:02:59]}  e5 {[%clk 0:02:56]} 2. g3 {[%clk 0:02:58]}  d6 {[%clk 0:02:53]} 3. Bg2 {[%clk 0:02:57]}  f5 {[%clk 0:02:54]} 4. Nc3 {[%clk 0:02:56]}  Nf6 {[%clk 0:02:54]} 5. b4 {[%clk 0:02:56]}  Be7 {[%clk 0:02:54]} 6. Nf3 {[%clk 0:02:54]}  O-O {[%clk 0:02:54]} 7. d3 {[%clk 0:02:55]}  Qe8 {[%clk 0:02:54]} 8. O-O {[%clk 0:02:55]}  Qh5 {[%clk 0:02:53]} 9. e3 {[%clk 0:02:55]}  c6 {[%clk 0:02:50]} 10. Nd2 {[%clk 0:02:52]}  Qg6 {[%clk 0:02:45]} 11. b5 {[%clk 0:02:45]}  Be6 {[%clk 0:02:34]} 12. Ba3 {[%clk 0:02:44]}  a6 {[%clk 0:02:32]} 13. bxc6 {[%clk 0:02:41]}  Nxc6 {[%clk 0:02:33]} 14. Rb1 {[%clk 0:02:41]}  Rab8 {[%clk 0:02:32]} 15. Nd5 {[%clk 0:02:41]}  Bxd5 {[%clk 0:02:19]} 16. cxd5 {[%clk 0:02:40]}  Nd8 {[%clk 0:02:19]} 17. Nc4 {[%clk 0:02:38]}  Nf7 {[%clk 0:02:19]} 18. f4 {[%clk 0:02:27]}  b5 {[%clk 0:01:58]} 19. Na5 {[%clk 0:02:24]}  Ng4 {[%clk 0:01:54]} 20. Nc6 {[%clk 0:02:22]}  Rbe8 {[%clk 0:01:48]} 21. Re1 {[%clk 0:02:14]}  Bf6 {[%clk 0:01:40]} 22. Qd2 {[%clk 0:02:02]}  exf4 {[%clk 0:01:33]} 23. exf4 {[%clk 0:02:03]}  Nd8 {[%clk 0:01:29]} 24. Bxd6 {[%clk 0:01:57]}  Nxc6 {[%clk 0:01:28]} 25. Bxf8 {[%clk 0:01:57]}  Nd4 {[%clk 0:01:20]} 26. Bc5 {[%clk 0:01:53]}  Rc8 {[%clk 0:01:16]} 27. Rbc1 {[%clk 0:01:40]}  h5 {[%clk 0:01:07]} 28. d6 {[%clk 0:01:37]}  h4 {[%clk 0:01:01]} 29. d7 {[%clk 0:01:30]}  Rd8 {[%clk 0:01:01]} 30. Bb6 {[%clk 0:01:18]}  Rxd7 {[%clk 0:00:48]} 31. Rc8+ {[%clk 0:01:14]}  Kh7 {[%clk 0:00:47]} 32. Ree8 {[%clk 0:01:14]}  Qf7 {[%clk 0:00:33]} 33. h3 {[%clk 0:01:14]}  Nh6 {[%clk 0:00:27]} 34. g4 {[%clk 0:01:15]}  fxg4 {[%clk 0:00:25]} 35. Rh8+ {[%clk 0:01:14]}  Kg6 {[%clk 0:00:25]} 36. Be4+ {[%clk 0:01:14]}  Ndf5 {[%clk 0:00:25]} 37. hxg4 {[%clk 0:01:11]}  Bd4+ {[%clk 0:00:10]} 38. Bxd4 {[%clk 0:01:10]}  Rxd4 {[%clk 0:00:11]} 39. Rc6+ {[%clk 0:01:08]}  Rd6 {[%clk 0:00:07]} 40. Rxd6+ {[%clk 0:01:09]} 1-0


[Site "https://www.chess.com"]

[Event "Titled Tuesday Blitz August 08 Late 2023"]
[White "Nilsen, Tobias Lang"]
[Black "Klukin, Kirill"]
[WhiteFideId "1521624"]
[BlackFideId "24199273"]
[WhiteElo "2431"]
[BlackElo "2755"]
[Result "0-1"]
[Round "1"]
[TimeControl "180+1"]
[Date "2023.08.08"]
[WhiteClock "0:01:29"]
[BlackClock "0:01:28"]
[Board "67"]

1. e4 {[%clk 0:03:00]}  c5 {[%clk 0:02:57]} 2. Nf3 {[%clk 0:03:00]}  g6 {[%clk 0:02:51]} 3. c3 {[%clk 0:02:57]}  Bg7 {[%clk 0:02:51]} 4. d4 {[%clk 0:02:57]}  cxd4 {[%clk 0:02:51]} 5. cxd4 {[%clk 0:02:57]}  d5 {[%clk 0:02:52]} 6. e5 {[%clk 0:02:58]}  a6 {[%clk 0:02:52]} 7. h3 {[%clk 0:02:56]}  Nc6 {[%clk 0:02:52]} 8. Nc3 {[%clk 0:02:54]}  f6 {[%clk 0:02:52]} 9. exf6 {[%clk 0:02:54]}  Nxf6 {[%clk 0:02:53]} 10. Bf4 {[%clk 0:02:54]}  O-O {[%clk 0:02:52]} 11. Bh2 {[%clk 0:02:44]}  Nh5 {[%clk 0:02:43]} 12. Bd3 {[%clk 0:02:38]}  Nxd4 {[%clk 0:02:16]} 13. Nxd4 {[%clk 0:02:38]}  Bxd4 {[%clk 0:02:16]} 14. O-O {[%clk 0:02:39]}  Bg7 {[%clk 0:02:01]} 15. Be2 {[%clk 0:02:35]}  d4 {[%clk 0:01:55]} 16. Ne4 {[%clk 0:02:29]}  Nf4 {[%clk 0:01:42]} 17. Bf3 {[%clk 0:02:29]}  e5 {[%clk 0:01:40]} 18. Re1 {[%clk 0:02:14]}  Be6 {[%clk 0:01:38]} 19. Rc1 {[%clk 0:01:55]}  Bd5 {[%clk 0:01:38]} 20. Rc5 {[%clk 0:01:44]}  Bc6 {[%clk 0:01:34]} 21. Qb3+ {[%clk 0:01:40]}  Kh8 {[%clk 0:01:32]} 22. Ng5 {[%clk 0:01:29]}  Qxg5 {[%clk 0:01:28]} 0-1


[Site "https://www.chess.com"]

[Event "Titled Tuesday Blitz August 08 Late 2023"]
[White "Kupervaser, Erez"]
[Black "Nazari, Arad"]
[WhiteFideId "2814587"]
[BlackFideId "12577324"]
[WhiteElo "2427"]
[BlackElo "2747"]
[Result "0-1"]
[Round "1"]
[TimeControl "180+1"]
[Date "2023.08.08"]
[WhiteClock "0:00:10"]
[BlackClock "0:00:10"]
[Board "69"]

1. e4 {[%clk 0:03:00]}  c5 {[%clk 0:02:54]} 2. Nf3 {[%clk 0:03:00]}  d6 {[%clk 0:02:54]} 3. Bb5+ {[%clk 0:02:58]}  Nd7 {[%clk 0:02:54]} 4. O-O {[%clk 0:02:58]}  Nf6 {[%clk 0:02:53]} 5. Re1 {[%clk 0:02:57]}  a6 {[%clk 0:02:53]} 6. Bf1 {[%clk 0:02:58]}  e6 {[%clk 0:02:51]} 7. c4 {[%clk 0:02:55]}  Be7 {[%clk 0:02:51]} 8. d4 {[%clk 0:02:54]}  cxd4 {[%clk 0:02:51]} 9. Nxd4 {[%clk 0:02:55]}  O-O {[%clk 0:02:51]} 10. Nc3 {[%clk 0:02:56]}  Qc7 {[%clk 0:02:51]} 11. Be3 {[%clk 0:02:42]}  Ne5 {[%clk 0:02:51]} 12. Rc1 {[%clk 0:02:43]}  Bd7 {[%clk 0:02:45]} 13. h3 {[%clk 0:02:29]}  Rac8 {[%clk 0:02:26]} 14. f4 {[%clk 0:02:22]}  Ng6 {[%clk 0:02:26]} 15. b3 {[%clk 0:02:08]}  Qb8 {[%clk 0:02:09]} 16. g3 {[%clk 0:01:54]}  Rfd8 {[%clk 0:02:07]} 17. Qe2 {[%clk 0:01:48]}  Bf8 {[%clk 0:01:55]} 18. h4 {[%clk 0:01:36]}  e5 {[%clk 0:01:51]} 19. Nf5 {[%clk 0:01:35]}  exf4 {[%clk 0:01:46]} 20. Bb6 {[%clk 0:01:27]}  Re8 {[%clk 0:01:38]} 21. Qf2 {[%clk 0:00:57]}  Ng4 {[%clk 0:01:23]} 22. Qf3 {[%clk 0:00:41]}  N4e5 {[%clk 0:01:17]} 23. Qf2 {[%clk 0:00:42]}  fxg3 {[%clk 0:00:56]} 24. Qxg3 {[%clk 0:00:43]}  Bxf5 {[%clk 0:00:35]} 25. exf5 {[%clk 0:00:43]}  Ne7 {[%clk 0:00:36]} 26. f6 {[%clk 0:00:17]}  Nf5 {[%clk 0:00:36]} 27. Qf4 {[%clk 0:00:18]}  Nxh4 {[%clk 0:00:34]} 28. fxg7 {[%clk 0:00:14]}  Bxg7 {[%clk 0:00:30]} 29. Kh1 {[%clk 0:00:14]}  Neg6 {[%clk 0:00:26]} 30. Qg4 {[%clk 0:00:14]}  Rxe1 {[%clk 0:00:17]} 31. Rxe1 {[%clk 0:00:15]}  Re8 {[%clk 0:00:18]} 32. Rxe8+ {[%clk 0:00:14]}  Qxe8 {[%clk 0:00:19]} 33. Nd5 {[%clk 0:00:13]}  Qe1 {[%clk 0:00:15]} 34. Kg1 {[%clk 0:00:14]}  Ne5 {[%clk 0:00:10]} 35. Qc8+ {[%clk 0:00:13]}  Bf8 {[%clk 0:00:10]} 36. Bf2 {[%clk 0:00:13]}  Nef3+ {[%clk 0:00:09]} 37. Kh1 {[%clk 0:00:11]}  Qxf1+ {[%clk 0:00:10]} 38. Bg1 {[%clk 0:00:10]}  Qxg1# {[%clk 0:00:10]} 0-1


[Site "https://www.chess.com"]

[Event "Titled Tuesday Blitz August 08 Late 2023"]
[White "Do Valle Cardoso, Lucas"]
[Black "Gabdushev, Ruslan"]
[WhiteFideId "2163144"]
[BlackFideId "4137833"]
[WhiteElo "2734"]
[BlackElo "2414"]
[Result "1-0"]
[Round "1"]
[TimeControl "180+1"]
[Date "2023.08.08"]
[WhiteClock "0:00:17"]
[BlackClock "0:00:00"]
[Board "74"]

1. e4 {[%clk 0:02:59]}  c6 {[%clk 0:02:54]} 2. d4 {[%clk 0:02:59]}  g6 {[%clk 0:02:53]} 3. Nc3 {[%clk 0:02:59]}  Bg7 {[%clk 0:02:53]} 4. h3 {[%clk 0:02:58]}  b5 {[%clk 0:02:48]} 5. Be3 {[%clk 0:02:46]}  b4 {[%clk 0:02:46]} 6. Nce2 {[%clk 0:02:45]}  Nf6 {[%clk 0:02:44]} 7. f3 {[%clk 0:02:43]}  a5 {[%clk 0:02:39]} 8. Qd2 {[%clk 0:02:41]}  Ba6 {[%clk 0:02:35]} 9. h4 {[%clk 0:02:38]}  h5 {[%clk 0:02:31]} 10. Nh3 {[%clk 0:02:38]}  d6 {[%clk 0:02:20]} 11. Ng5 {[%clk 0:02:37]}  Nbd7 {[%clk 0:02:16]} 12. O-O-O {[%clk 0:02:05]}  Qb8 {[%clk 0:02:07]} 13. Kb1 {[%clk 0:02:00]}  Nb6 {[%clk 0:02:03]} 14. b3 {[%clk 0:01:56]}  Nbd7 {[%clk 0:02:00]} 15. Nf4 {[%clk 0:01:41]}  a4 {[%clk 0:01:51]} 16. Bxa6 {[%clk 0:01:23]}  Rxa6 {[%clk 0:01:50]} 17. Nd3 {[%clk 0:01:24]}  axb3 {[%clk 0:01:42]} 18. cxb3 {[%clk 0:01:24]}  Rb6 {[%clk 0:01:34]} 19. e5 {[%clk 0:01:18]}  Nd5 {[%clk 0:01:31]} 20. e6 {[%clk 0:01:11]}  fxe6 {[%clk 0:01:28]} 21. Nxe6 {[%clk 0:01:10]}  Bf6 {[%clk 0:01:28]} 22. Rc1 {[%clk 0:01:01]}  Kf7 {[%clk 0:01:20]} 23. Ndf4 {[%clk 0:00:58]}  Nc3+ {[%clk 0:01:11]} 24. Ka1 {[%clk 0:00:50]}  Ra6 {[%clk 0:01:09]} 25. Rc2 {[%clk 0:00:48]}  Nb6 {[%clk 0:00:55]} 26. Qd3 {[%clk 0:00:37]}  Rxa2+ {[%clk 0:00:42]} 27. Rxa2 {[%clk 0:00:38]}  Rg8 {[%clk 0:00:40]} 28. Ra5 {[%clk 0:00:29]}  c5 {[%clk 0:00:38]} 29. g4 {[%clk 0:00:24]}  Qa8 {[%clk 0:00:10]} 30. Rxa8 {[%clk 0:00:14]}  Rxa8+ {[%clk 0:00:11]} 31. Kb2 {[%clk 0:00:15]}  Ra2+ {[%clk 0:00:09]} 32. Kc1 {[%clk 0:00:16]}  Ra1+ {[%clk 0:00:06]} 33. Kd2 {[%clk 0:00:16]}  Ra2+ {[%clk 0:00:06]} 34. Ke1 {[%clk 0:00:16]}  Ra1+ {[%clk 0:00:00]} 35. Kf2 {[%clk 0:00:17]} 1-0


[Site "https://www.chess.com"]

[Event "Titled Tuesday Blitz August 08 Late 2023"]
[White "Rakotomaharo, Fy Antenaina"]
[Black "KorolDimitriy75"]
[WhiteFideId "13100050"]
[WhiteElo "2730"]
[BlackElo "2412"]
[Result "1-0"]
[Round "1"]
[TimeControl "180+1"]
[Date "2023.08.08"]
[WhiteClock "0:00:18"]
[BlackClock "0:00:00"]
[Board "76"]

1. Nf3 {[%clk 0:03:00]}  c5 {[%clk 0:02:59]} 2. c4 {[%clk 0:02:59]}  g6 {[%clk 0:02:59]} 3. Nc3 {[%clk 0:02:57]}  Bg7 {[%clk 0:02:59]} 4. d4 {[%clk 0:02:58]}  cxd4 {[%clk 0:02:59]} 5. Nxd4 {[%clk 0:02:59]}  Nc6 {[%clk 0:02:58]} 6. Nc2 {[%clk 0:02:59]}  Nf6 {[%clk 0:02:57]} 7. e4 {[%clk 0:02:59]}  O-O {[%clk 0:02:56]} 8. Be2 {[%clk 0:03:00]}  d6 {[%clk 0:02:56]} 9. O-O {[%clk 0:03:00]}  a5 {[%clk 0:02:55]} 10. Be3 {[%clk 0:02:59]}  a4 {[%clk 0:02:55]} 11. Rc1 {[%clk 0:02:43]}  Qa5 {[%clk 0:02:54]} 12. Qd2 {[%clk 0:02:36]}  Bd7 {[%clk 0:02:50]} 13. Rfd1 {[%clk 0:02:34]}  Rfc8 {[%clk 0:02:49]} 14. f3 {[%clk 0:02:29]}  Kf8 {[%clk 0:02:47]} 15. Bh6 {[%clk 0:02:09]}  Ne5 {[%clk 0:02:42]} 16. Bxg7+ {[%clk 0:02:09]}  Kxg7 {[%clk 0:02:43]} 17. Ne3 {[%clk 0:02:08]}  Bc6 {[%clk 0:02:37]} 18. Kh1 {[%clk 0:01:32]}  Qb4 {[%clk 0:02:09]} 19. Nc2 {[%clk 0:01:23]}  Qa5 {[%clk 0:02:07]} 20. b4 {[%clk 0:01:22]}  axb3 {[%clk 0:02:04]} 21. axb3 {[%clk 0:01:23]}  Be8 {[%clk 0:01:19]} 22. f4 {[%clk 0:01:11]}  Nc6 {[%clk 0:01:13]} 23. Ra1 {[%clk 0:01:08]}  Qb6 {[%clk 0:01:06]} 24. b4 {[%clk 0:00:58]}  h5 {[%clk 0:00:38]} 25. h3 {[%clk 0:00:49]}  Qf2 {[%clk 0:00:18]} 26. Rxa8 {[%clk 0:00:42]}  Rxa8 {[%clk 0:00:18]} 27. Rf1 {[%clk 0:00:42]}  Qb6 {[%clk 0:00:16]} 28. b5 {[%clk 0:00:40]}  Na5 {[%clk 0:00:15]} 29. e5 {[%clk 0:00:40]}  dxe5 {[%clk 0:00:13]} 30. fxe5 {[%clk 0:00:41]}  Nd7 {[%clk 0:00:13]} 31. Nd5 {[%clk 0:00:41]}  Qc5 {[%clk 0:00:11]} 32. e6 {[%clk 0:00:35]}  Nf6 {[%clk 0:00:09]} 33. Qc3 {[%clk 0:00:26]}  fxe6 {[%clk 0:00:05]} 34. Nxf6 {[%clk 0:00:26]}  exf6 {[%clk 0:00:05]} 35. Qxf6+ {[%clk 0:00:25]}  Kh7 {[%clk 0:00:00]} 36. Nd4 {[%clk 0:00:18]} 1-0


[Site "https://www.chess.com"]

[Event "Titled Tuesday Blitz August 08 Late 2023"]
[White "Alex_Sahakyan2006"]
[Black "Herman, Daniel"]
[BlackFideId "30935008"]
[WhiteElo "2724"]
[BlackElo "2404"]
[Result "1-0"]
[Round "1"]
[TimeControl "180+1"]
[Date "2023.08.08"]
[WhiteClock "0:01:36"]
[BlackClock "0:00:00"]
[Board "78"]

1. e4 {[%clk 0:03:00]}  Nf6 {[%clk 0:02:58]} 2. Nc3 {[%clk 0:02:59]}  e5 {[%clk 0:02:53]} 3. Nf3 {[%clk 0:02:55]}  Nc6 {[%clk 0:02:52]} 4. Bb5 {[%clk 0:02:56]}  Nd4 {[%clk 0:02:51]} 5. Bc4 {[%clk 0:02:49]}  Nxf3+ {[%clk 0:02:14]} 6. Qxf3 {[%clk 0:02:50]}  Bc5 {[%clk 0:02:14]} 7. d3 {[%clk 0:02:48]}  h6 {[%clk 0:02:10]} 8. Qg3 {[%clk 0:02:45]}  d6 {[%clk 0:00:42]} 9. Qxg7 {[%clk 0:02:43]}  Rh7 {[%clk 0:00:43]} 10. Qg3 {[%clk 0:02:37]}  Be6 {[%clk 0:00:37]} 11. Bxe6 {[%clk 0:02:36]}  fxe6 {[%clk 0:00:38]} 12. Be3 {[%clk 0:02:33]}  Bb6 {[%clk 0:00:32]} 13. O-O-O {[%clk 0:02:26]}  Qe7 {[%clk 0:00:30]} 14. Qf3 {[%clk 0:02:20]}  O-O-O {[%clk 0:00:29]} 15. h3 {[%clk 0:02:20]}  Rf8 {[%clk 0:00:29]} 16. Qe2 {[%clk 0:02:20]}  h5 {[%clk 0:00:19]} 17. g3 {[%clk 0:02:16]}  Rhf7 {[%clk 0:00:18]} 18. Rhf1 {[%clk 0:02:16]}  Nd7 {[%clk 0:00:17]} 19. h4 {[%clk 0:02:08]}  Nf6 {[%clk 0:00:10]} 20. Kb1 {[%clk 0:02:05]}  Ng4 {[%clk 0:00:10]} 21. Bg5 {[%clk 0:02:04]}  Qd7 {[%clk 0:00:09]} 22. f3 {[%clk 0:02:04]}  Nf6 {[%clk 0:00:08]} 23. Be3 {[%clk 0:02:02]}  Rg8 {[%clk 0:00:05]} 24. Rg1 {[%clk 0:02:00]}  Rfg7 {[%clk 0:00:05]} 25. Bxb6 {[%clk 0:01:56]}  axb6 {[%clk 0:00:05]} 26. Qf2 {[%clk 0:01:56]}  Qf7 {[%clk 0:00:04]} 27. Rdf1 {[%clk 0:01:54]}  Nd7 {[%clk 0:00:04]} 28. Ne2 {[%clk 0:01:48]}  Rf8 {[%clk 0:00:04]} 29. Qe3 {[%clk 0:01:48]}  Qg6 {[%clk 0:00:04]} 30. f4 {[%clk 0:01:48]}  Rgf7 {[%clk 0:00:04]} 31. a3 {[%clk 0:01:47]}  exf4 {[%clk 0:00:04]} 32. gxf4 {[%clk 0:01:47]}  Qh6 {[%clk 0:00:04]} 33. Rg5 {[%clk 0:01:47]}  e5 {[%clk 0:00:04]} 34. f5 {[%clk 0:01:47]}  Nf6 {[%clk 0:00:04]} 35. Rfg1 {[%clk 0:01:45]}  Ng4 {[%clk 0:00:05]} 36. Qf3 {[%clk 0:01:43]}  Rg7 {[%clk 0:00:05]} 37. Rxg7 {[%clk 0:01:40]}  Qxg7 {[%clk 0:00:05]} 38. Ng3 {[%clk 0:01:40]}  Qh6 {[%clk 0:00:05]} 39. Nxh5 {[%clk 0:01:40]}  Qxh5 {[%clk 0:00:06]} 40. Qxg4 {[%clk 0:01:40]}  Qh6 {[%clk 0:00:00]} 41. Qg7 {[%clk 0:01:36]} 1-0


[Site "https://www.chess.com"]

[Event "Titled Tuesday Blitz August 08 Late 2023"]
[White "Lacasa Diaz, Jose Antonio"]
[Black "Yanchenko, Roman"]
[WhiteFideId "2203375"]
[BlackFideId "4137329"]
[WhiteElo "2403"]
[BlackElo "2721"]
[Result "0-1"]
[Round "1"]
[TimeControl "180+1"]
[Date "2023.08.08"]
[WhiteClock "0:00:25"]
[BlackClock "0:01:20"]
[Board "79"]

1. e4 {[%clk 0:02:57]}  e6 {[%clk 0:03:00]} 2. d4 {[%clk 0:02:56]}  d5 {[%clk 0:03:00]} 3. e5 {[%clk 0:02:57]}  c5 {[%clk 0:03:01]} 4. c3 {[%clk 0:02:57]}  Qb6 {[%clk 0:03:01]} 5. Nf3 {[%clk 0:02:57]}  Bd7 {[%clk 0:03:02]} 6. a3 {[%clk 0:02:58]}  Bb5 {[%clk 0:03:02]} 7. dxc5 {[%clk 0:02:57]}  Bxc5 {[%clk 0:03:02]} 8. Bxb5+ {[%clk 0:02:57]}  Qxb5 {[%clk 0:03:02]} 9. b4 {[%clk 0:02:57]}  Bf8 {[%clk 0:03:02]} 10. a4 {[%clk 0:02:58]}  Qd7 {[%clk 0:03:02]} 11. O-O {[%clk 0:02:56]}  Nc6 {[%clk 0:03:02]} 12. Re1 {[%clk 0:02:51]}  Nge7 {[%clk 0:03:02]} 13. Bf4 {[%clk 0:02:39]}  Ng6 {[%clk 0:03:00]} 14. Bg3 {[%clk 0:02:40]}  Be7 {[%clk 0:02:59]} 15. Na3 {[%clk 0:02:36]}  O-O {[%clk 0:02:58]} 16. Nb5 {[%clk 0:02:29]}  a6 {[%clk 0:02:52]} 17. Nbd4 {[%clk 0:02:29]}  Rfc8 {[%clk 0:02:51]} 18. Rb1 {[%clk 0:02:21]}  Nxd4 {[%clk 0:02:47]} 19. cxd4 {[%clk 0:02:17]}  Rc4 {[%clk 0:02:47]} 20. h4 {[%clk 0:02:03]}  Bxb4 {[%clk 0:02:42]} 21. Re3 {[%clk 0:02:01]}  Ne7 {[%clk 0:02:42]} 22. Rd3 {[%clk 0:01:57]}  Rac8 {[%clk 0:02:38]} 23. h5 {[%clk 0:01:54]}  h6 {[%clk 0:02:38]} 24. Bf4 {[%clk 0:01:52]}  a5 {[%clk 0:02:33]} 25. g4 {[%clk 0:01:46]}  Rc3 {[%clk 0:02:28]} 26. g5 {[%clk 0:01:39]}  Nf5 {[%clk 0:02:26]} 27. gxh6 {[%clk 0:01:39]}  gxh6 {[%clk 0:02:26]} 28. Nh2 {[%clk 0:01:34]}  Rxd3 {[%clk 0:02:13]} 29. Qxd3 {[%clk 0:01:30]}  Kh8 {[%clk 0:02:08]} 30. Kh1 {[%clk 0:01:26]}  Qxa4 {[%clk 0:02:06]} 31. Ng4 {[%clk 0:01:22]}  Qc2 {[%clk 0:02:05]} 32. Qxc2 {[%clk 0:01:13]}  Rxc2 {[%clk 0:02:06]} 33. Nxh6 {[%clk 0:01:12]}  Rxf2 {[%clk 0:01:55]} 34. Nxf7+ {[%clk 0:00:57]}  Kg8 {[%clk 0:01:52]} 35. Nh6+ {[%clk 0:00:55]}  Kh7 {[%clk 0:01:25]} 36. Nxf5 {[%clk 0:00:41]}  Rxf4 {[%clk 0:01:25]} 37. Nd6 {[%clk 0:00:40]}  Rxd4 {[%clk 0:01:21]} 38. Nxb7 {[%clk 0:00:39]}  Rh4+ {[%clk 0:01:21]} 39. Kg2 {[%clk 0:00:36]}  Rxh5 {[%clk 0:01:21]} 40. Ra1 {[%clk 0:00:32]}  Rxe5 {[%clk 0:01:20]} 41. Nxa5 {[%clk 0:00:32]}  Bxa5 {[%clk 0:01:20]} 42. Rxa5 {[%clk 0:00:32]}  Kg6 {[%clk 0:01:20]} 43. Kf3 {[%clk 0:00:32]}  Kf5 {[%clk 0:01:20]} 44. Ra8 {[%clk 0:00:30]}  Re4 {[%clk 0:01:20]} 45. Rf8+ {[%clk 0:00:27]}  Ke5 {[%clk 0:01:20]} 46. Kf2 {[%clk 0:00:25]}  Rf4+ {[%clk 0:01:20]} 0-1


[Site "https://www.chess.com"]